[Event "44th Chess Olympiad Women 2022"]
[Site "Chennai"]
[Date "2022.08.08"]
[Round "10.35"]
[White "Gitu, Paula-Alexandra"]
[Black "Dubois, Martine"]
[Result "1-0"]
[WhiteElo "2109"]
[BlackElo "1782"]
[Annotator "NA RC"]
[PlyCount "89"]
[EventDate "2022.??.??"]
[TimeControl "60"]

1. e4 {[%emt 0:00:01]} d5 {[%emt 0:00:08]} 2. exd5 {[%emt 0:00:05]} Qxd5 {
[%emt 0:00:03]} 3. Nc3 {[%emt 0:00:04]} Qd6 {[%emt 0:00:06]} 4. d4 {[%emt 0:00:
00]} Nf6 {[%emt 0:00:06]} 5. Nf3 {[%emt 0:00:17]} g6 {[%emt 0:00:26]} 6. g3 {
[%emt 0:08:37]} Bg7 {[%emt 0:00:34]} 7. Bf4 {[%emt 0:01:48]} Qd8 {[%emt 0:00:
00]} 8. Qd2 {[%emt 0:04:23]} h6 {[%emt 0:09:14]} 9. Bg2 {[%emt 0:05:11]} c6 {
[%emt 0:02:01]} 10. O-O {[%emt 0:04:45]} Be6 {[%emt 0:02:12]} 11. Rfe1 {
[%emt 0:01:26]} Nbd7 {[%emt 0:05:27]} 12. Qd3 {[%emt 0:04:11]} O-O {[%emt 0:00:
00]} 13. h3 {[%emt 0:16:46]} Bd5 {[%emt 0:07:44]} 14. Qe3 {[%emt 0:20:59]} Bxf3
{[%emt 0:11:08]} 15. Bxf3 {[%emt 0:00:20]} g5 {[%emt 0:02:29]} 16. Be5 {
[%emt 0:03:08]} e6 {[%emt 0:03:35]} 17. Rad1 {[%emt 0:08:14]} a5 {[%emt 0:00:
00]} 18. Be2 {[%emt 0:06:47]} Ne8 {[%emt 0:10:46]} 19. g4 {[%emt 0:03:34]} a4 {
[%emt 0:06:30]} 20. Bd3 {[%emt 0:07:16]} Ra5 {[%emt 0:00:52]} 21. Bg3 {[%emt 0:
00:00]} Ndf6 {[%emt 0:02:23]} 22. Ne2 {[%emt 0:00:32]} Nd5 {[%emt 0:01:06]} 23.
Qd2 {[%emt 0:00:02]} Ra8 {[%emt 0:00:34]} 24. c4 {[%emt 0:00:12]} Ne7 {[%emt 0:
00:00]} 25. Qe3 {[%emt 0:01:06]} Kh8 {[%emt 0:00:49]} 26. Bc2 {[%emt 0:00:29]}
Ng8 {[%emt 0:01:10]} 27. f4 {[%emt 0:00:24]} gxf4 {[%emt 0:00:36]} 28. Nxf4 {
[%emt 0:00:30]} Qg5 {[%emt 0:01:15]} 29. Qf2 {[%emt 0:00:06]} Rd8 {[%emt 0:00:
00]} 30. Bh4 {[%emt 0:00:07]} Qa5 {[%emt 0:00:40]} 31. Bxd8 {[%emt 0:01:08]}
Qxd8 {[%emt 0:00:02]} 32. Nh5 {[%emt 0:00:19]} Nd6 {[%emt 0:00:36]} 33. Nxg7 {
[%emt 0:00:47]} Kxg7 {[%emt 0:00:03]} 34. d5 {[%emt 0:00:49]} cxd5 {[%emt 0:00:
00]} 35. cxd5 {[%emt 0:00:03]} Qc7 {[%emt 0:02:10]} 36. dxe6 {[%emt 0:01:01]}
fxe6 {[%emt 0:00:40]} 37. Qd4+ {[%emt 0:00:07]} Nf6 {[%emt 0:00:18]} 38. Qxd6 {
[%emt 0:00:50]} Qxc2 {[%emt 0:00:06]} 39. Rd2 {[%emt 0:00:29]} Qc4 {[%emt 0:00:
00]} 40. Qxe6 {[%emt 0:00:29]} Qc5+ {[%emt 0:00:59]} 41. Qe3 {[%emt 0:30:03]}
Qc4 {[%emt 0:30:42]} 42. g5 {[%emt 0:00:00]} hxg5 {[%emt 0:00:00]} 43. Qxg5+ {
[%emt 0:00:00]} Kf7 {[%emt 0:00:00]} 44. Rd7+ {[%emt 0:00:00]} Nxd7 {[%emt 0:
00:00]} 45. Re7# {[%emt 0:00:00]} 1-0

[Event "44th Chess Olympiad Women 2022"]
[Site "Chennai"]
[Date "2022.08.08"]
[Round "10.35"]
[White "Jose de Ribbegren, Kenia"]
[Black "Petrenko, Svetlana"]
[Result "0-1"]
[WhiteElo "1787"]
[BlackElo "2029"]
[Annotator "NA RC"]
[PlyCount "174"]
[EventDate "2022.??.??"]
[TimeControl "60"]

1. d4 {[%emt 0:00:09]} d5 {[%emt 0:00:41]} 2. Bf4 {[%emt 0:00:10]} c6 {[%emt 0:
00:00]} 3. Nc3 {[%emt 0:03:34]} Nf6 {[%emt 0:05:03]} 4. e3 {[%emt 0:03:05]} g6
{[%emt 0:02:38]} 5. Bd3 {[%emt 0:02:11]} Bg7 {[%emt 0:00:29]} 6. h4 {[%emt 0:
00:00]} h5 {[%emt 0:03:47]} 7. Nh3 {[%emt 0:03:35]} Nbd7 {[%emt 0:01:54]} 8.
Ng5 {[%emt 0:02:40]} Nf8 {[%emt 0:00:09]} 9. Ne2 {[%emt 0:15:05]} N6h7 {
[%emt 0:03:39]} 10. Nf3 {[%emt 0:08:00]} Be6 {[%emt 0:08:13]} 11. c3 {[%emt 0:
00:00]} Qc8 {[%emt 0:12:13]} 12. Qc2 {[%emt 0:01:26]} c5 {[%emt 0:00:30]} 13.
dxc5 {[%emt 0:02:30]} Qxc5 {[%emt 0:00:03]} 14. Ned4 {[%emt 0:01:24]} Bd7 {
[%emt 0:02:42]} 15. Ne5 {[%emt 0:03:18]} Bxe5 {[%emt 0:04:31]} 16. Bxe5 {
[%emt 0:00:13]} Rg8 {[%emt 0:00:26]} 17. Qb3 {[%emt 0:04:35]} b6 {[%emt 0:00:
00]} 18. Nb5 {[%emt 0:15:32]} Ne6 {[%emt 0:02:17]} 19. Bd4 {[%emt 0:05:15]} Qc6
{[%emt 0:09:11]} 20. Kd2 {[%emt 0:04:55]} a6 {[%emt 0:07:02]} 21. Na3 {[%emt 0:
00:00]} Nc5 {[%emt 0:04:06]} 22. Qc2 {[%emt 0:02:10]} b5 {[%emt 0:03:42]} 23.
Bxc5 {[%emt 0:02:11]} Qxc5 {[%emt 0:00:06]} 24. Rac1 {[%emt 0:00:50]} Nf6 {
[%emt 0:01:10]} 25. f3 {[%emt 0:00:31]} Rc8 {[%emt 0:04:09]} 26. Qb3 {[%emt 0:
00:00]} Qd6 {[%emt 0:05:18]} 27. Qd1 {[%emt 0:01:19]} Ne4+ {[%emt 0:02:43]} 28.
Bxe4 {[%emt 0:01:53]} dxe4+ {[%emt 0:00:03]} 29. Ke1 {[%emt 0:02:15]} Qg3+ {
[%emt 0:01:25]} 30. Kf1 {[%emt 0:00:26]} Be6 {[%emt 0:05:05]} 31. Qe1 {[%emt 0:
00:00]} Qxe1+ {[%emt 0:00:18]} 32. Kxe1 {[%emt 0:00:16]} exf3 {[%emt 0:01:06]}
33. gxf3 {[%emt 0:00:01]} b4 {[%emt 0:01:00]} 34. Nb1 {[%emt 0:01:03]} Bxa2 {
[%emt 0:00:12]} 35. Nd2 {[%emt 0:01:09]} bxc3 {[%emt 0:00:46]} 36. Rxc3 {
[%emt 0:00:44]} Rxc3 {[%emt 0:00:10]} 37. bxc3 {[%emt 0:00:01]} Kd7 {[%emt 0:
00:00]} 38. Kf2 {[%emt 0:03:18]} Be6 {[%emt 0:02:28]} 39. Ra1 {[%emt 0:00:59]}
Ra8 {[%emt 0:00:04]} 40. Ra5 {[%emt 0:00:56]} Kc6 {[%emt 0:01:15]} 41. Ke2 {
[%emt 0:33:19]} Kb6 {[%emt 0:30:46]} 42. Ra1 {[%emt 0:01:30]} a5 {[%emt 0:00:
00]} 43. Kd3 {[%emt 0:01:02]} Rd8+ {[%emt 0:02:40]} 44. Kc2 {[%emt 0:00:25]} f6
{[%emt 0:00:00]} 45. c4 {[%emt 0:00:00]} g5 {[%emt 0:00:00]} 46. hxg5 {[%emt 0:
00:00]} fxg5 {[%emt 0:00:00]} 47. Rb1+ {[%emt 0:00:00]} Ka6 {[%emt 0:00:00]}
48. Rb5 {[%emt 0:00:00]} Bxc4 {[%emt 0:00:00]} 49. Rxg5 {[%emt 0:00:00]} Bd3+ {
[%emt 0:00:00]} 50. Kc3 {[%emt 0:00:00]} Bb5 {[%emt 0:00:00]} 51. Rxh5 {
[%emt 0:00:00]} Rd3+ {[%emt 0:00:00]} 52. Kc2 {[%emt 0:00:00]} Rxe3 {[%emt 0:
00:00]} 53. f4 {[%emt 0:00:00]} Re6 {[%emt 0:00:00]} 54. Re5 {[%emt 0:00:00]}
Rc6+ {[%emt 0:00:00]} 55. Kb3 {[%emt 0:00:00]} Rd6 {[%emt 0:00:00]} 56. Kc3 {
[%emt 0:00:42]} Rd3+ {[%emt 0:00:00]} 57. Kc2 {[%emt 0:00:14]} Rd7 {[%emt 0:00:
00]} 58. Re6+ {[%emt 0:01:48]} Ka7 {[%emt 0:00:00]} 59. Re5 {[%emt 0:00:09]}
Rb7 {[%emt 0:00:29]} 60. Ne4 {[%emt 0:01:21]} Kb6 {[%emt 0:02:24]} 61. Nc3 {
[%emt 0:00:54]} Bc6 {[%emt 0:00:24]} 62. f5 {[%emt 0:01:30]} a4 {[%emt 0:00:43]
} 63. Re6 {[%emt 0:00:23]} Kc5 {[%emt 0:00:46]} 64. f6 {[%emt 0:00:48]} exf6 {
[%emt 0:00:05]} 65. Rxf6 {[%emt 0:00:21]} a3 {[%emt 0:00:18]} 66. Rf5+ {
[%emt 0:00:36]} Kd4 {[%emt 0:00:17]} 67. Ra5 {[%emt 0:02:32]} Rb2+ {[%emt 0:00:
00]} 68. Kc1 {[%emt 0:00:21]} Rb3 {[%emt 0:03:19]} 69. Nb1 {[%emt 0:02:07]} Be4
{[%emt 0:01:50]} 70. Nxa3 {[%emt 0:00:00]} Rh3 {[%emt 0:02:19]} 71. Nb5+ {
[%emt 0:00:00]} Ke3 {[%emt 0:00:34]} 72. Ra3+ {[%emt 0:00:00]} Bd3 {[%emt 0:00:
00]} 73. Nd6 {[%emt 0:00:36]} Rh1+ {[%emt 0:00:50]} 74. Kb2 {[%emt 0:00:06]}
Kd2 {[%emt 0:00:30]} 75. Ra1 {[%emt 0:00:59]} Rh6 {[%emt 0:00:43]} 76. Nf7 {
[%emt 0:00:21]} Rb6+ {[%emt 0:00:40]} 77. Ka3 {[%emt 0:00:24]} Kc3 {[%emt 0:00:
00]} 78. Rc1+ {[%emt 0:00:28]} Bc2 {[%emt 0:00:03]} 79. Rxc2+ {[%emt 0:01:00]}
Kxc2 {[%emt 0:00:03]} 80. Ne5 {[%emt 0:00:37]} Kc3 {[%emt 0:00:02]} 81. Ka4 {
[%emt 0:00:11]} Rb1 {[%emt 0:00:31]} 82. Nc6 {[%emt 0:00:50]} Rb6 {[%emt 0:00:
00]} 83. Ne5 {[%emt 0:00:18]} Re6 {[%emt 0:01:05]} 84. Nd7 {[%emt 0:00:26]} Rd6
{[%emt 0:01:10]} 85. Ne5 {[%emt 0:00:30]} Rd4+ {[%emt 0:00:31]} 86. Ka3 {
[%emt 0:00:47]} Rd5 {[%emt 0:00:10]} 87. Nc6 {[%emt 0:00:11]} Rc5 {[%emt 0:00:
00]} 0-1

[Event "44th Chess Olympiad Women 2022"]
[Site "Chennai"]
[Date "2022.08.08"]
[Round "10.35"]
[White "Lebel-Arias, Julia"]
[Black "Mihailova, Alina"]
[Result "0-1"]
[WhiteElo "1660"]
[BlackElo "1926"]
[Annotator "NA RC"]
[PlyCount "118"]
[EventDate "2022.??.??"]
[TimeControl "60"]

1. d4 {[%emt 0:00:07]} d5 {[%emt 0:00:06]} 2. c3 {[%emt 0:00:16]} Nf6 {[%emt 0:
00:00]} 3. Bf4 {[%emt 0:00:11]} c5 {[%emt 0:01:10]} 4. e3 {[%emt 0:00:11]} Nc6
{[%emt 0:00:06]} 5. Nd2 {[%emt 0:00:22]} Bf5 {[%emt 0:00:55]} 6. Ngf3 {[%emt 0:
00:00]} e6 {[%emt 0:00:31]} 7. Bg3 {[%emt 0:02:35]} Be7 {[%emt 0:02:45]} 8. Ne5
{[%emt 0:00:31]} O-O {[%emt 0:00:53]} 9. Be2 {[%emt 0:00:40]} Nd7 {[%emt 0:00:
00]} 10. f4 {[%emt 0:01:01]} f6 {[%emt 0:01:36]} 11. Nxd7 {[%emt 0:00:44]} Qxd7
{[%emt 0:00:12]} 12. Nf3 {[%emt 0:00:56]} cxd4 {[%emt 0:08:11]} 13. exd4 {
[%emt 0:00:19]} Bd6 {[%emt 0:01:21]} 14. O-O {[%emt 0:01:04]} Rae8 {[%emt 0:00:
00]} 15. Bd3 {[%emt 0:03:39]} Bxd3 {[%emt 0:06:18]} 16. Qxd3 {[%emt 0:00:14]}
Qc7 {[%emt 0:00:15]} 17. Qd2 {[%emt 0:01:59]} b5 {[%emt 0:03:47]} 18. a3 {
[%emt 0:02:24]} Na5 {[%emt 0:06:11]} 19. Rae1 {[%emt 0:02:12]} Nc4 {[%emt 0:00:
00]} 20. Qc1 {[%emt 0:00:27]} a5 {[%emt 0:00:11]} 21. Nd2 {[%emt 0:00:17]} Nb6
{[%emt 0:03:19]} 22. Rf3 {[%emt 0:04:55]} Nd7 {[%emt 0:16:52]} 23. Nf1 {
[%emt 0:02:20]} f5 {[%emt 0:03:58]} 24. Bh4 {[%emt 0:00:38]} h6 {[%emt 0:02:20]
} 25. Qd2 {[%emt 0:02:05]} Kh8 {[%emt 0:02:39]} 26. Qc1 {[%emt 0:04:59]} Rg8 {
[%emt 0:01:07]} 27. Kh1 {[%emt 0:00:35]} Nf8 {[%emt 0:03:24]} 28. Qd2 {[%emt 0:
00:00]} Nh7 {[%emt 0:02:01]} 29. h3 {[%emt 0:03:29]} g5 {[%emt 0:02:30]} 30.
fxg5 {[%emt 0:02:47]} hxg5 {[%emt 0:00:07]} 31. Bg3 {[%emt 0:00:37]} f4 {
[%emt 0:02:18]} 32. Bh2 {[%emt 0:01:05]} Nf6 {[%emt 0:01:48]} 33. Qd3 {[%emt 0:
00:00]} Qd7 {[%emt 0:02:15]} 34. Nd2 {[%emt 0:01:54]} Rg7 {[%emt 0:00:57]} 35.
g4 {[%emt 0:02:37]} Ree7 {[%emt 0:01:06]} 36. Kg2 {[%emt 0:01:56]} Qe8 {
[%emt 0:00:12]} 37. Kh1 {[%emt 0:01:12]} Rh7 {[%emt 0:00:09]} 38. Re2 {[%emt 0:
00:00]} Rh6 {[%emt 0:02:00]} 39. Kg1 {[%emt 0:01:04]} Qc6 {[%emt 0:00:44]} 40.
Kg2 {[%emt 0:00:59]} Nd7 {[%emt 0:00:16]} 41. Bg1 {[%emt 0:30:53]} Bc7 {
[%emt 0:31:20]} 42. Bf2 {[%emt 0:03:04]} Kg8 {[%emt 0:00:00]} 43. h4 {[%emt 0:
00:00]} Rg7 {[%emt 0:00:00]} 44. Kh3 {[%emt 0:00:00]} gxh4 {[%emt 0:00:00]} 45.
Re1 {[%emt 0:00:00]} Nf6 {[%emt 0:00:00]} 46. Rg1 {[%emt 0:00:00]} Ne4 {
[%emt 0:00:00]} 47. g5 {[%emt 0:00:00]} Nxg5+ {[%emt 0:00:00]} 48. Rxg5 {
[%emt 0:00:00]} Rxg5 {[%emt 0:00:00]} 49. b3 {[%emt 0:00:00]} Qd7 {[%emt 0:00:
00]} 50. Kh2 {[%emt 0:00:00]} Qg7 {[%emt 0:00:00]} 51. Qxb5 {[%emt 0:00:00]}
Rg2+ {[%emt 0:00:00]} 52. Kh1 {[%emt 0:00:00]} Rhg6 {[%emt 0:00:00]} 53. Qf1 {
[%emt 0:00:00]} R2g3 {[%emt 0:03:41]} 54. Bxg3 {[%emt 0:00:00]} hxg3 {[%emt 0:
00:00]} 55. Kg1 {[%emt 0:00:00]} Qh7 {[%emt 0:00:53]} 56. Qg2 {[%emt 0:00:00]}
Rh6 {[%emt 0:00:30]} 57. Nf1 {[%emt 0:00:00]} Kh8 {[%emt 0:02:00]} 58. b4 {
[%emt 0:00:00]} e5 {[%emt 0:01:11]} 59. dxe5 {[%emt 0:00:00]} Bb6+ {[%emt 0:00:
00]} 0-1

[Event "44th Chess Olympiad Women 2022"]
[Site "Chennai"]
[Date "2022.08.08"]
[Round "10.35"]
[White "Petricenco, Ana"]
[Black "Berezovska, Svetlana"]
[Result "1-0"]
[WhiteElo "1912"]
[BlackElo "1781"]
[Annotator "NA RC"]
[PlyCount "113"]
[EventDate "2022.??.??"]
[TimeControl "60"]

1. e4 {[%emt 0:00:03]} e6 {[%emt 0:00:26]} 2. d3 {[%emt 0:00:09]} d5 {[%emt 0:
00:00]} 3. Nd2 {[%emt 0:00:07]} Nf6 {[%emt 0:00:45]} 4. Ngf3 {[%emt 0:00:18]}
c5 {[%emt 0:00:39]} 5. g3 {[%emt 0:00:43]} Nc6 {[%emt 0:01:00]} 6. Bg2 {
[%emt 0:01:13]} b6 {[%emt 0:02:06]} 7. O-O {[%emt 0:00:08]} Bb7 {[%emt 0:00:08]
} 8. Re1 {[%emt 0:01:31]} Be7 {[%emt 0:00:31]} 9. c3 {[%emt 0:00:56]} Qc7 {
[%emt 0:06:46]} 10. a3 {[%emt 0:04:23]} h6 {[%emt 0:08:00]} 11. Nf1 {[%emt 0:
00:00]} O-O-O {[%emt 0:09:21]} 12. exd5 {[%emt 0:09:43]} Nxd5 {[%emt 0:04:02]}
13. Ne3 {[%emt 0:01:47]} Nf6 {[%emt 0:01:38]} 14. Nc4 {[%emt 0:05:06]} g5 {
[%emt 0:06:14]} 15. b4 {[%emt 0:09:59]} b5 {[%emt 0:19:58]} 16. Nce5 {[%emt 0:
00:00]} Nxe5 {[%emt 0:04:35]} 17. Nxe5 {[%emt 0:00:09]} Bd6 {[%emt 0:09:36]}
18. Bxb7+ {[%emt 0:00:57]} Qxb7 {[%emt 0:02:57]} 19. Qe2 {[%emt 0:05:19]} Bxe5
{[%emt 0:04:12]} 20. Qxe5 {[%emt 0:00:14]} Nd7 {[%emt 0:00:50]} 21. Qe2 {
[%emt 0:01:33]} Kb8 {[%emt 0:06:39]} 22. Be3 {[%emt 0:03:49]} Ne5 {[%emt 0:00:
00]} 23. Bf4 {[%emt 0:03:30]} gxf4 {[%emt 0:00:08]} 24. Qxe5+ {[%emt 0:00:05]}
Qc7 {[%emt 0:00:43]} 25. Qf6 {[%emt 0:05:13]} Rhg8 {[%emt 0:02:16]} 26. Rad1 {
[%emt 0:10:18]} Rg5 {[%emt 0:03:10]} 27. Qxh6 {[%emt 0:06:39]} Rdg8 {[%emt 0:
00:00]} 28. Kf1 {[%emt 0:02:41]} fxg3 {[%emt 0:01:15]} 29. hxg3 {[%emt 0:01:49]
} Rxg3 {[%emt 0:01:03]} 30. fxg3 {[%emt 0:03:19]} Qxg3 {[%emt 0:00:07]} 31. Qh1
{[%emt 0:00:51]} Qf4+ {[%emt 0:01:22]} 32. Ke2 {[%emt 0:00:06]} Rg3 {[%emt 0:
00:00]} 33. Qe4 {[%emt 0:00:33]} Qg5 {[%emt 0:00:50]} 34. Rf1 {[%emt 0:00:51]}
Qh5+ {[%emt 0:00:23]} 35. Rf3 {[%emt 0:00:34]} Rg2+ {[%emt 0:00:19]} 36. Ke3 {
[%emt 0:00:22]} Qg5+ {[%emt 0:00:24]} 37. Qf4+ {[%emt 0:00:14]} Qxf4+ {[%emt 0:
00:00]} 38. Rxf4 {[%emt 0:00:06]} f5 {[%emt 0:00:09]} 39. d4 {[%emt 0:00:26]}
cxb4 {[%emt 0:00:32]} 40. cxb4 {[%emt 0:00:10]} Kc7 {[%emt 0:00:14]} 41. d5 {
[%emt 0:30:21]} Kd6 {[%emt 0:30:23]} 42. dxe6+ {[%emt 0:00:48]} Kxe6 {[%emt 0:
00:00]} 43. Kf3 {[%emt 0:00:28]} Rc2 {[%emt 0:01:01]} 44. Re1+ {[%emt 0:00:13]}
Kf6 {[%emt 0:00:07]} 45. Rd4 {[%emt 0:00:26]} Rc3+ {[%emt 0:00:42]} 46. Re3 {
[%emt 0:00:06]} Rc6 {[%emt 0:01:14]} 47. Rd5 {[%emt 0:00:06]} a6 {[%emt 0:00:
00]} 48. Rc5 {[%emt 0:00:15]} Rd6 {[%emt 0:00:16]} 49. Rec3 {[%emt 0:00:10]}
Kg5 {[%emt 0:00:36]} 50. Rc6 {[%emt 0:00:06]} Rd1 {[%emt 0:00:10]} 51. Rxa6 {
[%emt 0:00:07]} Rf1+ {[%emt 0:00:44]} 52. Kg2 {[%emt 0:00:08]} Rd1 {[%emt 0:00:
00]} 53. Rg3+ {[%emt 0:00:10]} Kf4 {[%emt 0:00:13]} 54. Rf3+ {[%emt 0:00:18]}
Kg5 {[%emt 0:00:58]} 55. Ra5 {[%emt 0:00:15]} Rd2+ {[%emt 0:00:13]} 56. Rf2 {
[%emt 0:00:06]} Rd3 {[%emt 0:00:11]} 57. Rxb5 {[%emt 0:00:13]} 1-0

[Event "44th Chess Olympiad Women 2022"]
[Site "Chennai"]
[Date "2022.08.08"]
[Round "10.36"]
[White "Al Mansouri, Moza"]
[Black "Ramirez, Maria Eugenia"]
[Result "1/2-1/2"]
[WhiteElo "1606"]
[BlackElo "2005"]
[Annotator "NA RC"]
[PlyCount "213"]
[EventDate "2022.??.??"]
[TimeControl "60"]

1. e4 {[%emt 0:00:03]} e5 {[%emt 0:00:07]} 2. Nf3 {[%emt 0:00:04]} Nc6 {
[%emt 0:00:04]} 3. Bb5 {[%emt 0:00:06]} Nd4 {[%emt 0:00:17]} 4. Nxd4 {[%emt 0:
00:00]} exd4 {[%emt 0:00:07]} 5. Bc4 {[%emt 0:00:19]} h5 {[%emt 0:00:24]} 6. c3
{[%emt 0:03:43]} Bc5 {[%emt 0:01:42]} 7. O-O {[%emt 0:04:18]} c6 {[%emt 0:00:
00]} 8. d3 {[%emt 0:02:08]} d5 {[%emt 0:05:09]} 9. exd5 {[%emt 0:01:10]} cxd5 {
[%emt 0:00:11]} 10. Re1+ {[%emt 0:10:56]} Kf8 {[%emt 0:02:58]} 11. Bb5 {
[%emt 0:07:16]} Bg4 {[%emt 0:08:18]} 12. Qa4 {[%emt 0:02:56]} Qf6 {[%emt 0:00:
00]} 13. c4 {[%emt 0:10:09]} h4 {[%emt 0:09:01]} 14. b4 {[%emt 0:03:57]} Bd6 {
[%emt 0:05:48]} 15. Qxa7 {[%emt 0:09:18]} Rd8 {[%emt 0:03:53]} 16. h3 {[%emt 0:
00:00]} Bc8 {[%emt 0:17:06]} 17. c5 {[%emt 0:03:19]} Bc7 {[%emt 0:09:53]} 18.
c6 {[%emt 0:02:42]} Ne7 {[%emt 0:11:03]} 19. cxb7 {[%emt 0:02:00]} Bf5 {
[%emt 0:07:13]} 20. Qa8 {[%emt 0:03:50]} Qd6 {[%emt 0:01:36]} 21. f4 {[%emt 0:
00:00]} Qxb4 {[%emt 0:04:00]} 22. Qxd8+ {[%emt 0:00:59]} Bxd8 {[%emt 0:00:02]}
23. b8=Q {[%emt 0:00:29]} Qxe1+ {[%emt 0:00:05]} 24. Kh2 {[%emt 0:00:04]} Nc8 {
[%emt 0:01:23]} 25. Qe5 {[%emt 0:01:26]} Qxe5 {[%emt 0:00:07]} 26. fxe5 {
[%emt 0:00:03]} Bc7 {[%emt 0:00:09]} 27. Ba3+ {[%emt 0:01:39]} Kg8 {[%emt 0:00:
00]} 28. Nd2 {[%emt 0:01:02]} Bxe5+ {[%emt 0:00:27]} 29. Kg1 {[%emt 0:00:26]}
Na7 {[%emt 0:01:03]} 30. Ba6 {[%emt 0:00:29]} Rh6 {[%emt 0:01:36]} 31. Bb7 {
[%emt 0:00:32]} Nb5 {[%emt 0:00:39]} 32. Bc5 {[%emt 0:00:46]} Nc3 {[%emt 0:00:
00]} 33. Nf3 {[%emt 0:02:20]} Bf6 {[%emt 0:00:37]} 34. a4 {[%emt 0:01:17]} Rg6
{[%emt 0:01:00]} 35. Kh2 {[%emt 0:01:44]} Bxd3 {[%emt 0:01:00]} 36. a5 {
[%emt 0:01:56]} Ne4 {[%emt 0:01:28]} 37. Bxd4 {[%emt 0:00:32]} Bxd4 {[%emt 0:
00:00]} 38. Nxd4 {[%emt 0:00:04]} Nc5 {[%emt 0:00:09]} 39. Bc8 {[%emt 0:02:22]}
Rd6 {[%emt 0:01:43]} 40. Ra3 {[%emt 0:02:17]} Bc4 {[%emt 0:01:04]} 41. Nf5 {
[%emt 0:34:07]} Rf6 {[%emt 0:04:00]} 42. Ne3 {[%emt 0:00:00]} Rc6 {[%emt 0:00:
00]} 43. Nxc4 {[%emt 0:00:00]} dxc4 {[%emt 0:12:53]} 44. Bb7 {[%emt 0:00:00]}
Nxb7 {[%emt 0:01:02]} 45. a6 {[%emt 0:00:00]} Na5 {[%emt 0:01:19]} 46. Rxa5 {
[%emt 0:00:00]} Rc8 {[%emt 0:00:05]} 47. a7 {[%emt 0:00:00]} Ra8 {[%emt 0:00:
00]} 48. Rc5 {[%emt 0:00:00]} c3 {[%emt 0:03:00]} 49. Rxc3 {[%emt 0:00:00]}
Rxa7 {[%emt 0:00:03]} 50. Rc4 {[%emt 0:00:00]} g5 {[%emt 0:00:07]} 51. Kg1 {
[%emt 0:00:00]} Ra2 {[%emt 0:01:08]} 52. Rg4 {[%emt 0:00:00]} f6 {[%emt 0:00:
00]} 53. g3 {[%emt 0:00:00]} hxg3 {[%emt 0:00:46]} 54. h4 {[%emt 0:00:00]} Ra5
{[%emt 0:02:11]} 55. Rxg3 {[%emt 0:00:00]} Kg7 {[%emt 0:00:27]} 56. hxg5 {
[%emt 0:00:00]} fxg5 {[%emt 0:00:31]} 57. Rd3 {[%emt 0:00:00]} Kg6 {[%emt 0:00:
00]} 58. Kg2 {[%emt 0:00:00]} Kh5 {[%emt 0:00:34]} 59. Rh3+ {[%emt 0:00:00]}
Kg4 {[%emt 0:01:08]} 60. Rg3+ {[%emt 0:00:00]} Kf4 {[%emt 0:00:12]} 61. Rf3+ {
[%emt 0:00:00]} Ke5 {[%emt 0:01:13]} 62. Kg3 {[%emt 0:00:00]} Ra4 {[%emt 0:00:
00]} 63. Rf8 {[%emt 0:00:00]} Rb4 {[%emt 0:01:34]} 64. Rf7 {[%emt 0:00:00]} Rd4
{[%emt 0:02:20]} 65. Rf8 {[%emt 0:00:00]} Rc4 {[%emt 0:01:08]} 66. Rf7 {
[%emt 0:00:00]} Ke6 {[%emt 0:00:12]} 67. Rf8 {[%emt 0:00:00]} Ra4 {[%emt 0:00:
00]} 68. Rf1 {[%emt 0:00:00]} Re4 {[%emt 0:00:26]} 69. Rf2 {[%emt 0:00:00]} Ke5
{[%emt 0:01:07]} 70. Rf8 {[%emt 0:00:00]} Rb4 {[%emt 0:00:23]} 71. Rf7 {
[%emt 0:00:00]} Ra4 {[%emt 0:00:33]} 72. Rf8 {[%emt 0:00:00]} Ra1 {[%emt 0:00:
00]} 73. Kg2 {[%emt 0:00:00]} Ke4 {[%emt 0:00:30]} 74. Rf7 {[%emt 0:00:00]} Ra3
{[%emt 0:00:18]} 75. Rf6 {[%emt 0:00:00]} Ke5 {[%emt 0:00:18]} 76. Rf8 {
[%emt 0:00:00]} Rb3 {[%emt 0:00:13]} 77. Rf7 {[%emt 0:00:00]} Ke6 {[%emt 0:00:
00]} 78. Rf8 {[%emt 0:00:00]} Rc3 {[%emt 0:00:12]} 79. Rf1 {[%emt 0:00:00]} Re3
{[%emt 0:00:52]} 80. Rf8 {[%emt 0:00:00]} Rd3 {[%emt 0:00:19]} 81. Rf1 {
[%emt 0:00:00]} Ra3 {[%emt 0:00:44]} 82. Rf8 {[%emt 0:00:00]} Ke5 {[%emt 0:00:
00]} 83. Rf7 {[%emt 0:00:00]} Ke4 {[%emt 0:00:05]} 84. Rf6 {[%emt 0:00:00]} Ra4
{[%emt 0:01:34]} 85. Kg3 {[%emt 0:00:00]} Ra1 {[%emt 0:00:29]} 86. Kg2 {
[%emt 0:00:00]} Ra5 {[%emt 0:00:37]} 87. Rf8 {[%emt 0:00:00]} Rb5 {[%emt 0:00:
00]} 88. Rf7 {[%emt 0:00:10]} Rb2+ {[%emt 0:00:36]} 89. Kg3 {[%emt 0:00:12]}
Rb1 {[%emt 0:00:18]} 90. Kg2 {[%emt 0:00:05]} Ra1 {[%emt 0:00:39]} 91. Rf8 {
[%emt 0:00:07]} Ke5 {[%emt 0:00:25]} 92. Rf7 {[%emt 0:00:10]} Ra4 {[%emt 0:00:
00]} 93. Kg3 {[%emt 0:00:12]} Ra1 {[%emt 0:00:24]} 94. Kg2 {[%emt 0:00:03]} Rc1
{[%emt 0:00:03]} 95. Rf8 {[%emt 0:00:07]} Ke4 {[%emt 0:00:21]} 96. Rf7 {
[%emt 0:00:16]} Rc3 {[%emt 0:00:15]} 97. Rf8 {[%emt 0:00:12]} Rc5 {[%emt 0:00:
00]} 98. Rf7 {[%emt 0:00:20]} Re5 {[%emt 0:00:23]} 99. Kg3 {[%emt 0:00:37]} Rf5
{[%emt 0:01:06]} 100. Re7+ {[%emt 0:00:46]} Re5 {[%emt 0:00:12]} 101. Rf7 {
[%emt 0:00:06]} Kd5 {[%emt 0:00:55]} 102. Kg4 {[%emt 0:00:22]} Ke6 {[%emt 0:00:
00]} 103. Rf3 {[%emt 0:00:17]} Rd5 {[%emt 0:00:21]} 104. Rf1 {[%emt 0:00:15]}
Rc5 {[%emt 0:00:33]} 105. Rf2 {[%emt 0:00:08]} Re5 {[%emt 0:00:27]} 106. Rf1 {
[%emt 0:00:06]} Kd5 {[%emt 0:00:52]} 107. Rf5 1/2-1/2